bitfinex/quotes_BTCUSD_20240731
["timestamp","ask_amount","ask_price","bid_price","bid_amount"]
[1722387918320,0.24885925,66538.0,66537.0,0.014913]
[1722387918516,0.54943925,66538.0,66537.0,0.02354259]
[1722387918740,0.24885925,66538.0,66537.0,0.014913]
[1722387918953,0.94836641,66538.0,66537.0,0.014913]
[1722387919162,1.0962668,66538.0,66537.0,0.014913]
[1722387919358,0.87294424,66538.0,66537.0,0.000913]
[1722387919588,0.87294424,66538.0,66537.0,0.007913]
[1722387920124,0.87305601,66538.0,66537.0,0.007913]
[1722387921144,0.57247601,66538.0,66537.0,0.007913]
[1722387921346,1.00830386,66538.0,66537.0,0.007913]
[1722387921743,0.70772386,66538.0,66537.0,0.007913]
[1722387922591,0.70781399,66538.0,66537.0,0.007913]
[1722387922708,0.8731458,66538.0,66537.0,0.007913]
[1722387922904,0.87296492,66538.0,66537.0,0.007913]
[1722387923124,1.45037147,66538.0,66537.0,0.007913]
[1722387923337,1.41512328,66538.0,66537.0,0.007913]
[1722387924200,1.27354492,66538.0,66537.0,0.007913]
[1722387924395,1.27354492,66538.0,66537.0,0.000913]
[1722387924822,1.27354492,66538.0,66537.0,0.001913]
[1722387925692,1.25111912,66538.0,66537.0,0.001913]
[1722387925916,1.27374577,66538.0,66537.0,0.001913]
[1722387926151,1.36200345,66538.0,66537.0,0.001913]
[1722387927361,1.27374577,66538.0,66537.0,0.001913]
[1722387927684,1.40878397,66538.0,66537.0,0.001913]
[1722387928775,1.27374577,66538.0,66537.0,0.001913]
[1722387929012,1.43260334,66538.0,66537.0,0.001913]
[1722387929315,1.43260334,66538.0,66527.0,0.000913]
[1722387929316,1.341587,66528.0,66527.0,0.000913]
[1722387929532,1.48747823,66528.0,66527.0,0.000913]
[1722387929727,1.27207823,66528.0,66527.0,0.000913]
[1722387931843,1.2906091,66528.0,66527.0,0.000913]
[1722387932053,1.2906091,66528.0,66527.0,0.001913]
[1722387932054,1.26771787,66528.0,66527.0,0.001913]
[1722387932210,1.95754041,66528.0,66527.0,0.001913]
[1722387932827,1.96544609,66528.0,66527.0,0.001913]
[1722387933419,1.98118629,66528.0,66527.0,0.001913]
[1722387935650,1.99392759,66528.0,66527.0,0.001913]
[1722387937162,1.995298,66528.0,66527.0,0.001913]
[1722387938651,1.995298,66528.0,66520.0,1.72007307]
[1722387938652,1.124596,66521.0,66520.0,1.72007307]
[1722387938885,1.57527972,66521.0,66520.0,1.72007307]
[1722387939072,1.89433274,66521.0,66520.0,1.72007307]
[1722387939490,1.80458825,66521.0,66520.0,1.72007307]
[1722387940939,1.80411719,66521.0,66520.0,1.72007307]
[1722387941764,1.95481151,66521.0,66520.0,1.72007307]
[1722387941974,1.95481151,66521.0,66520.0,1.72107307]
[1722387942396,1.50346119,66521.0,66520.0,1.72107307]
[1722387942601,0.91510519,66521.0,66520.0,1.72007307]
[1722387943017,0.91910519,66521.0,66520.0,1.72007307]
[1722387943452,0.16746519,66521.0,66520.0,1.72870266]
[1722387943684,0.12242949,66521.0,66520.0,1.87100266]
[1722387943899,0.004,66521.0,66520.0,1.87100266]
[1722387944482,0.004,66521.0,66520.0,1.89100266]
[1722387944483,0.01653825,66521.0,66520.0,1.89100266]
[1722387944700,0.01653825,66521.0,66520.0,1.72007307]
[1722387944701,0.48670163,66521.0,66520.0,1.72007307]
[1722387944967,1.26504191,66521.0,66520.0,1.72007307]
[1722387945177,1.65606865,66521.0,66520.0,1.72007307]
[1722387945412,1.75906865,66521.0,66520.0,1.72007307]
[1722387945638,1.78206865,66521.0,66520.0,1.72007307]
[1722387946092,1.78506865,66521.0,66520.0,1.72007307]
[1722387946316,1.77906865,66521.0,66520.0,1.72007307]
[1722387946553,1.78206865,66521.0,66520.0,1.72007307]
[1722387946763,1.84084435,66521.0,66520.0,1.72007307]
[1722387946941,1.84221476,66521.0,66520.0,1.72007307]
[1722387947349,1.84084435,66521.0,66520.0,1.72007307]
[1722387948042,1.65052672,66521.0,66520.0,1.72007307]
[1722387948474,1.17372428,66521.0,66520.0,1.72007307]
[1722387948673,1.19684645,66521.0,66520.0,1.72007307]
[1722387948845,0.91193193,66521.0,66520.0,1.72007307]
[1722387950015,0.31061993,66521.0,66520.0,1.72007307]
[1722387950221,0.16029193,66521.0,66520.0,1.72870266]
[1722387950435,0.06029193,66521.0,66520.0,1.72870266]
[1722387951147,0.19219165,66521.0,66520.0,1.72870266]
[1722387951378,0.29262357,66521.0,66520.0,1.72007307]
[1722387951615,0.30804756,66521.0,66520.0,1.72007307]
[1722387951839,0.31004756,66521.0,66520.0,1.72007307]
[1722387952093,0.15971956,66521.0,66520.0,1.72870266]
[1722387952510,0.04129557,66521.0,66520.0,1.72870266]
[1722387952721,0.13929557,66521.0,66520.0,1.72870266]
[1722387952939,0.13929557,66521.0,66520.0,1.80490266]
[1722387952940,0.15771956,66521.0,66520.0,1.80490266]
[1722387953067,0.11574148,66521.0,66520.0,1.87150266]
[1722387953469,0.15745032,66521.0,66520.0,1.87150266]
[1722387954045,0.15745032,66521.0,66520.0,1.89150266]
[1722387954046,0.03416269,66521.0,66520.0,1.89150266]
[1722387954459,0.03928522,66521.0,66520.0,1.89150266]
[1722387954636,0.03928522,66521.0,66520.0,1.88750266]
[1722387954844,0.03928522,66521.0,66520.0,1.89150266]
[1722387955050,0.03928522,66521.0,66520.0,2.03783266]
[1722387955251,0.01574148,66521.0,66520.0,2.03783266]
[1722387955453,0.01574148,66521.0,66520.0,2.04583266]
[1722387955454,0.01674148,66521.0,66520.0,2.04583266]
[1722387955656,0.01674148,66521.0,66520.0,2.34649366]
[1722387955896,0.01674148,66521.0,66520.0,1.89550266]
[1722387956303,0.01574148,66521.0,66520.0,1.88750266]
[1722387956439,0.01574148,66521.0,66520.0,1.89550266]
[1722387956648,0.01674148,66521.0,66520.0,1.89550266]
[1722387957459,0.01674148,66521.0,66520.0,1.87550266]
[1722387957842,0.01574148,66521.0,66520.0,2.33849366]
[1722387958300,0.001,66521.0,66520.0,2.34649366]
[1722387958508,0.001,66521.0,66520.0,2.33849366]
[1722387958715,0.001,66521.0,66520.0,2.34749366]
[1722387958921,0.002,66521.0,66520.0,2.34749366]
[1722387959116,0.001,66521.0,66520.0,2.33849366]
[1722387959283,0.001,66521.0,66520.0,1.88750266]
[1722387959477,0.002,66521.0,66520.0,1.90050266]
[1722387959736,0.250311,66529.0,66527.0,0.00038582]
[1722387959737,0.150313,66528.0,66527.0,0.00038582]
[1722387959935,0.27889599,66528.0,66527.0,0.01038582]
[1722387960142,0.02531587,66528.0,66527.0,0.02901541]
[1722387960350,0.02531587,66528.0,66527.0,0.11072959]
[1722387960576,0.02531587,66528.0,66527.0,0.17592959]
[1722387960776,0.02531587,66528.0,66527.0,0.16892959]
[1722387960997,0.4817067,66533.0,66532.0,0.00862959]
[1722387961197,0.60662876,66533.0,66532.0,0.01801541]
[1722387961396,0.60662876,66533.0,66532.0,0.02801541]
[1722387962048,0.60662876,66533.0,66532.0,0.07338582]
[1722387962243,0.60662876,66533.0,66532.0,0.09062959]
[1722387962656,0.13782876,66533.0,66532.0,0.09062959]
[1722387962861,0.13782876,66533.0,66532.0,0.09101541]
[1722387962862,0.1129067,66533.0,66532.0,0.09101541]
[1722387963074,0.13777492,66533.0,66532.0,0.09101541]
[1722387963244,0.13777492,66533.0,66532.0,0.17012959]
[1722387963245,0.03777492,66533.0,66532.0,0.17012959]
[1722387963427,0.0129067,66533.0,66532.0,0.62103959]
[1722387963631,0.19324884,66538.0,66532.0,0.62103959]
[1722387963632,0.00328912,66538.0,66537.0,0.16522959]
[1722387964445,0.00328912,66538.0,66537.0,0.16561541]
[1722387964715,0.00328912,66538.0,66537.0,0.16861541]
[1722387965124,0.00328912,66538.0,66537.0,0.16522959]
[1722387965354,0.00328912,66538.0,66537.0,0.17422959]
[1722387965570,0.02127438,66538.0,66537.0,0.17422959]
[1722387965992,0.02127438,66538.0,66537.0,0.17461541]
[1722387966237,0.00328912,66538.0,66537.0,0.17461541]
[1722387966438,0.00328912,66538.0,66537.0,0.32452159]
[1722387966645,0.00328912,66538.0,66537.0,0.17422959]
[1722387966857,0.00328912,66538.0,66537.0,0.17461541]
[1722387966858,0.02127438,66538.0,66537.0,0.17461541]
[1722387967460,0.02127438,66538.0,66537.0,0.32452159]
[1722387967634,0.02127438,66538.0,66537.0,0.92568959]
[1722387968023,0.00328912,66538.0,66537.0,0.92568959]
[1722387968663,0.00328912,66538.0,66537.0,1.22627359]
[1722387969271,0.00328912,66538.0,66537.0,0.92568959]
[1722387972062,0.00328912,66538.0,66537.0,0.32452159]
[1722387972618,0.00328912,66538.0,66537.0,0.17422959]
[1722387973115,0.02146812,66538.0,66537.0,0.17422959]
[1722387973474,0.00328912,66538.0,66537.0,0.17422959]
[1722387973670,0.47233812,66538.0,66537.0,0.0943]
[1722387973883,0.47233812,66538.0,66537.0,0.009]
[1722387973884,0.85107487,66538.0,66537.0,0.009]
[1722387974114,1.45493733,66538.0,66537.0,0.009]
[1722387974312,1.4773908,66538.0,66537.0,0.009]
[1722387974568,1.36512348,66538.0,66537.0,0.009]
[1722387974800,1.28696673,66538.0,66537.0,0.009]
[1722387975173,1.28696673,66538.0,66528.0,0.00038582]
[1722387975174,0.45093,66529.0,66528.0,0.00038582]
[1722387975588,0.46906549,66529.0,66528.0,0.00801541]
[1722387975774,0.46906549,66529.0,66528.0,0.00038582]
[1722387975983,0.450951,66526.0,66525.0,0.00038582]
[1722387976429,0.450951,66526.0,66522.0,0.00038582]
[1722387976430,0.150323,66523.0,66522.0,0.00038582]
[1722387976631,0.300639,66525.0,66521.0,0.00038582]
[1722387976632,0.450978,66522.0,66521.0,0.00038582]
[1722387976782,0.77559707,66522.0,66521.0,0.00038582]
[1722387976981,0.79367021,66522.0,66521.0,0.00038582]
[1722387977530,0.81667021,66522.0,66521.0,0.00038582]
[1722387977742,1.26153719,66522.0,66521.0,0.00038582]
[1722387977992,1.36190519,66522.0,66521.0,0.00038582]
[1722387978451,1.36190519,66522.0,66520.0,1.72007307]
[1722387978452,1.052296,66521.0,66520.0,1.72007307]
[1722387978621,1.175296,66521.0,66520.0,1.72007307]
[1722387978821,1.34401169,66521.0,66520.0,1.72007307]
[1722387979976,1.35101169,66521.0,66520.0,1.72107307]
[1722387980393,1.43398118,66521.0,66520.0,1.72107307]
[1722387981916,1.28328686,66521.0,66520.0,1.72107307]
[1722387983005,0.92325616,66521.0,66520.0,1.72107307]
[1722387983141,0.59960016,66521.0,66520.0,1.72107307]
[1722387983340,0.91599721,66521.0,66520.0,1.72107307]
[1722387984555,0.93918526,66521.0,66520.0,1.72107307]
[1722387984834,1.06438241,66521.0,66520.0,1.72107307]
[1722387985119,1.13328241,66521.0,66520.0,1.72107307]
[1722387985364,1.43393841,66521.0,66520.0,1.72107307]
[1722387986221,1.89319441,66521.0,66520.0,1.72107307]
[1722387986430,1.59253841,66521.0,66520.0,1.72107307]
[1722387986836,1.65215872,66521.0,66520.0,1.72107307]
[1722387986959,1.56875557,66521.0,66520.0,1.72107307]
[1722387987152,1.9528865,66521.0,66520.0,1.72107307]
[1722387988255,1.9524226,66521.0,66520.0,1.72107307]
[1722387988677,1.9533611,66521.0,66520.0,1.72107307]
[1722387990091,1.59285082,66521.0,66520.0,1.72107307]
[1722387990325,1.59275335,66521.0,66520.0,1.72107307]
[1722387990554,1.89340935,66521.0,66520.0,1.72107307]
[1722387991481,1.86941157,66521.0,66520.0,1.72107307]
[1722387991689,1.23992487,66521.0,66520.0,1.72107307]
[1722387991888,1.3746163,66521.0,66520.0,1.72107307]
[1722387992104,1.23992487,66521.0,66520.0,1.72107307]
[1722387994583,1.21605842,66521.0,66520.0,1.72107307]
[1722387994789,1.55821153,66521.0,66520.0,1.72107307]
[1722387994987,1.93421469,66521.0,66520.0,1.72107307]
[1722387995294,1.99831469,66521.0,66520.0,1.72107307]
[1722387995682,1.99831469,66521.0,66520.0,1.60495433]
[1722387995683,2.0006851,66521.0,66520.0,1.60495433]
[1722387995900,1.99831469,66521.0,66520.0,1.60495433]
[1722387996265,1.92296753,66521.0,66520.0,1.60495433]
[1722387996452,1.92533794,66521.0,66520.0,1.60495433]
[1722387997398,1.92296753,66521.0,66520.0,1.60495433]
[1722387997849,1.92159622,66521.0,66520.0,1.60495433]
[1722387998150,1.92159622,66521.0,66520.0,1.57995433]
[1722387998151,2.31696663,66521.0,66520.0,1.57995433]
[1722387998350,2.31459613,66521.0,66520.0,1.57995433]
[1722387998976,2.31696654,66521.0,66520.0,1.44909532]
[1722387999270,2.31696654,66521.0,66520.0,1.43552888]
[1722387999469,2.61762254,66521.0,66520.0,1.43552888]
[1722387999676,2.31696654,66521.0,66520.0,1.43552888]
[1722388000276,2.31696654,66521.0,66520.0,1.43452888]
[1722388000478,2.30759613,66521.0,66520.0,1.43452888]
[1722388001140,2.28500874,66521.0,66520.0,1.43452888]
[1722388001381,2.30816296,66521.0,66520.0,1.43452888]
[1722388001982,2.30816296,66521.0,66520.0,1.40132888]
[1722388002397,2.42030069,66521.0,66520.0,1.40132888]
[1722388002954,2.34730069,66521.0,66520.0,1.40132888]
[1722388003152,2.08446864,66521.0,66520.0,1.40132888]
[1722388003352,2.0295672,66521.0,66520.0,1.40232888]
[1722388003604,1.6919112,66521.0,66520.0,1.40132888]
[1722388003808,1.60221264,66521.0,66520.0,1.40132888]
[1722388004022,1.31555664,66521.0,66520.0,1.40232888]
[1722388004235,0.89940242,66521.0,66520.0,1.48192888]
[1722388004445,0.90922706,66521.0,66520.0,1.54532888]
[1722388004648,0.62257106,66521.0,66520.0,1.54632888]
[1722388005056,1.20988306,66521.0,66520.0,1.54532888]
[1722388005269,1.21188306,66521.0,66520.0,1.54532888]
[1722388005675,1.30490607,66521.0,66520.0,1.48092888]
[1722388005877,1.23488306,66521.0,66520.0,1.48092888]
[1722388006078,0.93422706,66521.0,66520.0,1.48092888]
[1722388007576,0.93492805,66521.0,66520.0,1.48092888]
[1722388007900,0.91040242,66521.0,66520.0,1.48092888]
[1722388008103,0.93492805,66521.0,66520.0,1.48092888]
[1722388009071,0.99499914,66521.0,66520.0,1.48092888]
[1722388010487,0.99499914,66521.0,66520.0,1.48855847]
[1722388010733,0.91040242,66521.0,66520.0,1.54192888]
[1722388010960,0.91040242,66521.0,66520.0,1.54955847]
[1722388010961,0.33364756,66521.0,66520.0,1.54955847]
[1722388011932,0.33364756,66521.0,66520.0,1.54192888]
[1722388011933,0.63430356,66521.0,66520.0,1.54192888]
[1722388012127,0.69476896,66521.0,66520.0,1.54192888]
[1722388012545,0.24378496,66521.0,66520.0,1.54955847]
[1722388012779,0.18331956,66521.0,66520.0,1.54955847]
[1722388013205,0.33164756,66521.0,66520.0,1.54955847]
[1722388013609,0.33164756,66521.0,66520.0,1.54392888]
[1722388013610,0.63230356,66521.0,66520.0,1.54392888]
[1722388013835,0.90840242,66521.0,66520.0,1.54192888]
[1722388014037,0.69272825,66521.0,66520.0,1.54192888]
[1722388014244,0.69272825,66521.0,66520.0,1.55355847]
[1722388014853,0.33171751,66521.0,66520.0,1.55355847]
[1722388015142,0.33153661,66521.0,66520.0,1.55355847]
[1722388015518,0.42133208,66521.0,66520.0,1.55355847]
[1722388015928,0.72198808,66521.0,66520.0,1.54592888]
[1722388016323,0.74443694,66521.0,66520.0,1.54592888]
[1722388017134,0.90822152,66521.0,66520.0,1.54592888]
[1722388017489,0.93298719,66521.0,66520.0,1.54592888]
[1722388017685,0.93261728,66521.0,66520.0,1.54592888]
[1722388018048,0.93261728,66521.0,66520.0,1.54192888]
[1722388018632,0.93661728,66521.0,66520.0,1.54192888]
[1722388018815,0.93261728,66521.0,66520.0,1.54192888]
[1722388019026,0.93561728,66521.0,66520.0,1.54192888]
[1722388019389,0.935697,66521.0,66520.0,1.54192888]
[1722388020594,0.93576197,66521.0,66520.0,1.54192888]
[1722388021255,0.9300002,66521.0,66520.0,1.54192888]
[1722388021392,0.9300002,66521.0,66520.0,1.54955847]
[1722388021794,0.9300002,66521.0,66520.0,1.54192888]
[1722388022397,1.27233908,66521.0,66520.0,1.40132888]
[1722388022579,1.33294088,66521.0,66520.0,1.40132888]
[1722388022779,1.24779863,66521.0,66520.0,1.40132888]
[1722388022985,1.33272711,66521.0,66520.0,1.40132888]
[1722388023698,1.29104423,66521.0,66520.0,1.40132888]
[1722388025760,1.65210023,66521.0,66520.0,1.40132888]
[1722388025976,1.81070023,66521.0,66520.0,1.40132888]
[1722388026175,1.59170023,66521.0,66520.0,1.40132888]
[1722388026387,1.50677175,66521.0,66520.0,1.40132888]
[1722388026621,1.75014308,66521.0,66520.0,1.40132888]
[1722388026832,1.74714308,66521.0,66520.0,1.40132888]
[1722388027091,1.58854308,66521.0,66520.0,1.40132888]
[1722388027300,1.59854308,66521.0,66520.0,1.40232888]
[1722388027499,1.7492374,66521.0,66520.0,1.40232888]
[1722388028339,1.89246607,66521.0,66520.0,1.40232888]
[1722388028578,2.22370617,66521.0,66520.0,1.40232888]
[1722388029319,2.22280637,66521.0,66520.0,1.40232888]
[1722388029553,2.00074723,66521.0,66520.0,1.35245807]
[1722388029787,2.00074723,66521.0,66520.0,1.32245807]
[1722388030037,2.00311764,66521.0,66520.0,1.18113807]
[1722388030276,2.00311764,66521.0,66520.0,1.12313807]
[1722388030471,2.00074723,66521.0,66520.0,1.12313807]
[1722388030911,2.00311764,66521.0,66520.0,1.12313807]
[1722388031115,2.00074723,66521.0,66520.0,1.12313807]
[1722388031649,2.00074723,66521.0,66520.0,1.09113807]
[1722388031859,2.00074723,66521.0,66520.0,1.05427807]
[1722388032275,2.00074723,66521.0,66520.0,1.02227807]
[1722388032276,1.91605824,66521.0,66520.0,1.02227807]
[1722388032665,2.00092589,66521.0,66520.0,1.02227807]
[1722388034038,2.00092589,66521.0,66520.0,0.96027807]
[1722388034422,2.15318782,66521.0,66520.0,0.96027807]
[1722388035625,2.15296557,66521.0,66520.0,0.96027807]
[1722388035964,2.00143037,66521.0,66520.0,0.96027807]
[1722388036174,1.78133605,66521.0,66520.0,0.96027807]
[1722388036380,1.48068005,66521.0,66520.0,0.96027807]
[1722388036582,1.39694405,66521.0,66520.0,0.96027807]
[1722388037850,1.39847711,66521.0,66520.0,0.96027807]
[1722388038672,1.23987016,66521.0,66520.0,0.96027807]
[1722388040337,1.21394575,66521.0,66520.0,0.96027807]
[1722388040536,1.30131537,66521.0,66520.0,0.96027807]
[1722388040739,1.45200969,66521.0,66520.0,0.96027807]
[1722388041153,1.45210655,66521.0,66520.0,0.96027807]
[1722388041990,1.60434998,66521.0,66520.0,0.96027807]
[1722388042159,1.45210655,66521.0,66520.0,0.96027807]
[1722388042592,1.97626255,66521.0,66520.0,0.96027807]
[1722388042792,1.97626255,66521.0,66520.0,0.84063638]
[1722388043063,1.98516255,66521.0,66520.0,0.84063638]
[1722388043713,2.13742334,66521.0,66520.0,0.72945638]
[1722388043914,2.13742334,66521.0,66504.0,0.000913]
[1722388043915,1.052534,66506.0,66505.0,0.0787]
[1722388044125,1.29378222,66506.0,66505.0,0.0787]
[1722388044375,0.751822,66505.0,66504.0,0.000913]
[1722388044561,0.751822,66505.0,66480.0,0.150421]
[1722388044562,0.751822,66505.0,66484.0,0.01]
[1722388044563,0.751992,66490.0,66484.0,0.01]
[1722388044767,0.89062991,66490.0,66484.0,0.01]
[1722388044969,0.88782453,66490.0,66489.0,0.00854259]
[1722388045180,0.86197631,66490.0,66489.0,0.07084259]
[1722388045395,0.86197631,66490.0,66489.0,0.063213]
[1722388045396,1.02597966,66490.0,66489.0,0.063213]
[1722388045599,1.00125164,66490.0,66489.0,0.063213]
[1722388045802,1.02598028,66490.0,66489.0,0.063213]
[1722388046387,1.1386967,66490.0,66489.0,0.063213]
[1722388046590,1.13869685,66490.0,66489.0,0.063213]
[1722388046829,1.02598028,66490.0,66489.0,0.063213]
[1722388047240,1.1386661,66490.0,66489.0,0.145313]
[1722388048209,1.03810798,66490.0,66489.0,0.145313]
[1722388048439,1.01337934,66490.0,66489.0,0.145313]
[1722388048642,1.01337934,66490.0,66489.0,0.002913]
[1722388048643,1.57959789,66490.0,66489.0,0.002913]
[1722388048799,0.150434,66474.0,66473.0,0.0801]
[1722388049016,0.150434,66474.0,66473.0,0.17002959]
[1722388049017,0.03438093,66474.0,66473.0,0.17002959]
[1722388049243,0.00935938,66474.0,66473.0,0.17002959]
[1722388050260,0.01035938,66474.0,66473.0,0.17002959]
[1722388050666,0.00935938,66474.0,66473.0,0.17002959]
[1722388050864,0.01035938,66474.0,66473.0,0.17002959]
[1722388051070,0.001,66474.0,66473.0,0.17002959]
[1722388051288,0.01030571,66474.0,66473.0,0.17002959]
[1722388051514,0.001,66474.0,66473.0,0.17002959]
[1722388051696,0.01030482,66474.0,66473.0,0.17002959]
[1722388051918,0.001,66474.0,66473.0,0.17002959]
[1722388052117,0.01030482,66474.0,66473.0,0.17002959]
[1722388052323,0.001,66474.0,66473.0,0.17002959]
[1722388052524,0.25179934,66490.0,66473.0,0.17002959]
[1722388052525,0.00116838,66489.0,66487.0,0.01]
[1722388052728,0.28572314,66505.0,66495.0,0.02762959]
[1722388052729,0.09001921,66496.0,66495.0,0.02762959]
[1722388052927,0.09001921,66496.0,66495.0,0.16502959]
[1722388052928,0.02512891,66496.0,66495.0,0.16502959]
[1722388053085,0.150376,66500.0,66499.0,0.00762959]
[1722388053281,0.02511812,66500.0,66499.0,0.00762959]
[1722388053483,0.02511812,66500.0,66497.0,0.0753]
[1722388053484,0.0251159,66502.0,66501.0,0.00762959]
[1722388053688,0.0251159,66502.0,66500.0,0.0811]
[1722388053689,0.10170193,66505.0,66504.0,0.08632959]
[1722388054084,0.26546847,66505.0,66504.0,0.08632959]
[1722388054270,0.47623274,66505.0,66504.0,0.08632959]
[1722388054464,0.48560253,66505.0,66504.0,0.08632959]
[1722388054706,0.03450586,66505.0,66504.0,0.16742959]
[1722388054908,0.12447188,66505.0,66504.0,0.16742959]
[1722388055111,0.15973379,66505.0,66504.0,0.1498]
[1722388055312,0.59779504,66505.0,66504.0,0.1398]
[1722388055870,0.72079504,66505.0,66504.0,0.1398]
[1722388056072,1.12641681,66505.0,66504.0,0.1398]
[1722388056290,1.12641681,66505.0,66504.0,0.1408]
[1722388056697,1.12641681,66505.0,66504.0,0.1398]
[1722388056921,0.72379504,66505.0,66504.0,0.14742959]
[1722388057303,0.22722176,66505.0,66504.0,0.16742959]
[1722388057504,0.01236979,66505.0,66504.0,0.61852859]
[1722388057722,0.00936979,66505.0,66504.0,0.91926159]
[1722388057932,0.11245826,66515.0,66514.0,0.02762959]
[1722388057933,0.08997798,66515.0,66514.0,0.02762959]
[1722388058178,0.08997798,66517.0,66516.0,0.01]
[1722388058386,0.150332,66519.0,66518.0,0.02762959]
[1722388058797,0.02481825,66519.0,66518.0,0.02762959]
[1722388059286,0.26278826,66520.0,66518.0,0.02762959]
[1722388059287,0.11245826,66520.0,66519.0,0.02562959]
[1722388059530,0.01656018,66521.0,66520.0,0.61502059]
[1722388059531,0.00083,66521.0,66520.0,0.61502059]
[1722388060012,0.00083,66521.0,66520.0,0.16402959]
[1722388060236,0.00083,66521.0,66520.0,0.31474541]
[1722388060475,0.00083,66521.0,66520.0,0.16402959]
[1722388060707,0.00083,66521.0,66520.0,0.31435959]
[1722388061202,0.00083,66521.0,66520.0,0.32374541]
[1722388061403,0.00183,66521.0,66520.0,0.32374541]
[1722388061633,0.00183,66521.0,66520.0,0.17302959]
[1722388062302,0.00183,66521.0,66520.0,0.17341541]
[1722388062845,0.00083,66521.0,66520.0,0.16402959]
[1722388063056,0.00183,66521.0,66520.0,0.17302959]
[1722388063265,0.00183,66521.0,66520.0,0.16402959]
[1722388063671,0.00283,66521.0,66520.0,0.17202959]
[1722388063885,0.00283,66521.0,66520.0,0.16402959]
[1722388063886,0.00183,66521.0,66520.0,0.16402959]
[1722388064081,0.452814,66521.0,66520.0,0.14602959]
[1722388064285,0.452814,66521.0,66520.0,0.14902959]
[1722388064504,0.75347,66521.0,66520.0,0.14902959]
[1722388064707,0.77647,66521.0,66520.0,0.14902959]
[1722388065731,0.77547,66521.0,66520.0,0.14602959]
[1722388066135,0.474814,66521.0,66520.0,0.15002959]
[1722388066342,0.174158,66521.0,66520.0,0.15002959]
[1722388068823,0.77547,66521.0,66520.0,0.08722959]
[1722388069159,0.474814,66521.0,66520.0,0.08722959]
[1722388070917,0.77547,66521.0,66520.0,0.08722959]
[1722388071897,1.076126,66521.0,66520.0,0.004]
[1722388072120,1.56285316,66521.0,66520.0,0.004]
[1722388072531,1.56522357,66521.0,66520.0,0.004]
[1722388072737,1.56285316,66521.0,66520.0,0.004]
[1722388072946,0.751777,66509.0,66508.0,0.00762959]
[1722388073180,0.751777,66509.0,66507.0,0.00801541]
[1722388073181,0.451072,66508.0,66507.0,0.00801541]
[1722388073440,0.574072,66508.0,66507.0,0.00762959]
[1722388073657,0.874787,66508.0,66507.0,0.00762959]
[1722388074475,0.874787,66508.0,66507.0,0.00801541]
[1722388074900,0.874787,66508.0,66507.0,0.00762959]
[1722388075286,1.05252,66507.0,66506.0,0.0798]
[1722388075496,1.17552,66507.0,66506.0,0.0798]
[1722388075710,1.2653834,66507.0,66506.0,0.0798]
[1722388075916,0.6639434,66507.0,66506.0,0.0798]
[1722388076124,0.57408,66507.0,66506.0,0.0798]
[1722388076549,0.8788,66507.0,66506.0,0.0798]
[1722388076725,0.57808,66507.0,66506.0,0.0798]
[1722388076931,1.01296977,66507.0,66506.0,0.08742959]
[1722388077143,1.01396977,66507.0,66506.0,0.08742959]
[1722388077782,1.01396977,66507.0,66506.0,0.0798]
[1722388078128,1.04817238,66507.0,66506.0,0.0798]
[1722388078329,1.04817238,66507.0,66499.0,0.1424]
[1722388078330,0.451126,66500.0,66499.0,0.1424]
[1722388078544,0.751877,66500.0,66499.0,0.1424]
[1722388078752,0.751877,66500.0,66499.0,0.0771]
[1722388078753,0.851877,66500.0,66499.0,0.0771]
[1722388078994,0.96428738,66500.0,66499.0,0.0771]
[1722388079187,1.10202383,66500.0,66499.0,0.0771]
[1722388079591,0.43365536,66500.0,66499.0,0.001]
[1722388079792,0.451153,66496.0,66495.0,0.00762959]
[1722388080050,0.173384,66496.0,66495.0,0.00762959]
[1722388080278,0.474153,66496.0,66495.0,0.00762959]
[1722388080787,0.774922,66496.0,66495.0,0.00762959]
[1722388080941,0.474153,66496.0,66495.0,0.00762959]
[1722388081203,0.474153,66496.0,66495.0,0.02562959]
[1722388081204,0.04596521,66496.0,66495.0,0.02562959]
[1722388081402,0.1,66500.0,66499.0,0.02562959]
[1722388081552,0.1229626,66500.0,66499.0,0.10862959]
[1722388082160,0.1229626,66500.0,66499.0,0.10762959]
[1722388082561,0.250375,66500.0,66499.0,0.09062959]
[1722388082757,0.29161369,66500.0,66499.0,0.09162959]
[1722388082959,0.29142156,66500.0,66499.0,0.10862959]
[1722388083163,0.1232689,66500.0,66499.0,0.10762959]
[1722388083456,0.2736439,66500.0,66499.0,0.11062959]
[1722388083641,0.5743949,66500.0,66499.0,0.10762959]
[1722388083842,0.64200868,66500.0,66499.0,0.10762959]
[1722388084301,0.5743949,66500.0,66499.0,0.10762959]
[1722388084499,0.2736439,66500.0,66499.0,0.10762959]
[1722388084697,0.1232689,66500.0,66499.0,0.10762959]
[1722388084935,0.1,66502.0,66500.0,0.007]
[1722388085080,0.300729,66505.0,66501.0,0.00762959]
[1722388085280,0.15037,66503.0,66502.0,0.00762959]
[1722388085488,0.59736555,66503.0,66502.0,0.00762959]
[1722388085685,0.5973651,66503.0,66502.0,0.00762959]
[1722388086388,0.6883989,66503.0,66502.0,0.00862959]
[1722388086601,0.2966271,66503.0,66502.0,0.00862959]
[1722388086810,0.5973651,66503.0,66502.0,0.00762959]
[1722388086995,0.5973651,66503.0,66502.0,0.00862959]
[1722388087442,0.1232571,66503.0,66502.0,0.16082959]
[1722388087643,0.150357,66508.0,66507.0,0.02462959]
[1722388087845,0.27344026,66508.0,66507.0,0.02462959]
[1722388088715,0.27344026,66508.0,66507.0,0.02362959]
[1722388088933,0.12308326,66508.0,66507.0,0.02362959]
[1722388089136,0.02322056,66508.0,66507.0,0.02362959]
[1722388089315,0.02322056,66508.0,66507.0,0.09872959]
[1722388089545,0.0898497,66515.0,66514.0,0.01662959]
[1722388089753,0.11306616,66515.0,66514.0,0.02362959]
[1722388090161,0.26340816,66515.0,66514.0,0.02362959]
[1722388090369,0.11306616,66515.0,66514.0,0.02362959]
[1722388090972,0.21306616,66515.0,66514.0,0.02362959]
[1722388091747,0.21306616,66515.0,66514.0,0.02262959]
[1722388092129,0.21308336,66515.0,66514.0,0.02262959]
[1722388092349,0.21508336,66515.0,66514.0,0.02262959]
[1722388092574,0.2758593,66515.0,66514.0,0.02262959]
[1722388092778,0.2758593,66515.0,66511.0,0.00038582]
[1722388092779,0.150348,66512.0,66511.0,0.00038582]
[1722388092989,0.8982593,66512.0,66511.0,0.00038582]
[1722388093593,0.751755,66511.0,66510.0,0.00038582]
[1722388093768,0.4975703,66511.0,66510.0,0.00801541]
[1722388093979,0.4975703,66511.0,66510.0,0.00762959]
[1722388094185,0.7982723,66511.0,66510.0,0.00762959]
[1722388094386,0.7981686,66511.0,66510.0,0.00762959]
[1722388094560,0.4974666,66511.0,66510.0,0.00762959]
[1722388094968,0.1967646,66511.0,66510.0,0.00762959]